bitfinex-derivatives/quotes_ETHF0:USTF0_20251223
["timestamp","ask_amount","ask_price","bid_price","bid_amount"]
[1766514126161,0.00275996,2938.8,2937.2,7.939]
[1766514126362,3.404,2938.7,2937.3,2.06479688]
[1766514129468,3.404,2938.7,2937.4,2.165]
[1766514129667,3.404,2938.7,2937.5,3.404]
[1766514129868,3.404,2938.7,2937.6,8.511]
[1766514130070,3.404,2938.7,2937.7,5.472]
[1766514130270,3.404,2938.7,2937.8,3.404]
[1766514130471,3.57422,2938.7,2937.1,0.00288211]
[1766514130668,3.57422,2938.7,2937.2,5.975]
[1766514130867,0.17023,2938.6,2937.2,5.975]
[1766514131263,0.17024,2938.5,2937.2,5.975]
[1766514131462,0.00275996,2938.8,2937.2,5.975]
[1766514131463,3.57424,2938.4,2937.2,5.975]
[1766514132062,3.216,2938.3,2937.1,0.00288211]
[1766514132259,3.216,2938.3,2937.0,3.404]
[1766514132567,0.00510742,2937.9,2936.7,3.404]
[1766514132769,3.404,2937.8,2936.7,3.404]
[1766514132968,0.17028,2937.7,2936.7,3.404]
[1766514133370,0.17028,2937.7,2936.7,3.40685805]
[1766514134769,3.404,2937.6,2936.7,3.40685805]
[1766514135183,3.404,2937.6,2936.7,0.00285805]
[1766514135384,3.404,2937.6,2936.4,3.4758]
[1766514135582,3.404,2937.6,2936.4,3.404]
[1766514136477,3.404,2937.6,2936.4,3.40734179]
[1766514136679,0.24208,2937.7,2936.4,3.40734179]
[1766514136880,9.839,2937.6,2936.4,3.40734179]
[1766514137475,0.17028,2937.7,2936.4,3.40734179]
[1766514137675,9.839,2937.6,2936.4,3.40734179]
[1766514146389,0.17028,2937.7,2936.4,3.40734179]
[1766514146695,0.00510742,2937.9,2936.5,2.06479688]
[1766514146898,3.405,2937.8,2936.5,2.06479688]
[1766514147994,3.405,2937.8,2936.5,1.82633947]
[1766514148492,3.405,2937.8,2936.4,8.58864179]
[1766514148692,3.57528,2937.8,2936.6,3.405]
[1766514152795,0.00510742,2937.9,2936.6,3.405]
[1766514153094,0.00510742,2937.9,2936.9,1.82633947]
[1766514153294,0.00510742,2937.9,2937.0,3.405]
[1766514153697,0.0712,2938.6,2937.3,1.82633947]
[1766514153897,3.405,2938.5,2937.4,3.405]
[1766514154602,3.405,2938.5,2937.3,0.0712]
[1766514154793,0.00510742,2938.2,2937.6,0.00510742]
[1766514157803,3.405,2938.1,2937.6,0.00510742]
[1766514158206,3.405,2938.1,2937.5,3.405]
[1766514160496,3.405,2938.1,2936.8,1.82633947]
[1766514160701,5.496,2938.1,2936.9,3.405]
[1766514160899,0.17027,2938.0,2936.8,3.405]
[1766514161096,7.059,2937.9,2936.8,3.405]
[1766514162507,7.22927,2937.9,2936.8,3.405]
[1766514163114,3.405,2937.9,2937.1,1.82633947]
[1766514163314,3.405,2937.9,2937.2,3.405]
[1766514164505,3.405,2937.9,2937.1,0.071]
[1766514164711,3.405,2937.9,2936.2,2.33537]
[1766514164712,3.405,2937.9,2937.0,3.405]
[1766514164908,3.405,2937.9,2936.9,9.446]
[1766514165114,3.405,2937.9,2936.9,3.405]
[1766514166616,0.17028,2937.8,2936.9,3.405]
[1766514169409,0.17535742,2938.2,2936.9,3.405]
[1766514169713,3.405,2938.1,2936.9,3.405]
[1766514177129,3.57526,2938.1,2936.9,3.405]
[1766514177522,0.17026,2938.1,2936.9,3.405]
[1766514177727,3.405,2938.0,2936.9,3.405]
[1766514179225,0.00510742,2938.2,2937.4,1.82633947]
[1766514179431,0.00510742,2938.2,2937.5,3.405]
[1766514180426,3.41010742,2938.2,2937.4,0.071]
[1766514180627,3.41010742,2938.2,2935.0,4.28470727]
[1766514180628,0.17027,2938.0,2936.8,1.684]
[1766514180828,3.405,2937.9,2937.1,3.405]
[1766514182929,3.405,2937.9,2937.0,3.405]
[1766514184226,3.405,2937.9,2936.8,1.82633947]
[1766514184531,0.1703,2937.4,2936.6,3.405]
[1766514184723,3.5753,2937.4,2936.6,3.405]
[1766514187829,3.405,2937.4,2936.6,3.405]
[1766514188025,6.421,2937.8,2936.6,3.405]
[1766514188236,3.405,2937.7,2936.6,3.405]
[1766514191237,3.57528,2937.7,2936.6,3.405]
[1766514191735,0.1703,2937.5,2936.4,0.00334179]
[1766514191938,5.23133947,2937.4,2936.0,3.405]
[1766514192234,0.00510742,2937.0,2936.1,5.23133947]
[1766514192441,0.00510742,2937.0,2936.2,3.405]
[1766514192936,0.00510742,2937.0,2936.2,3.40910112]
[1766514193432,0.17028,2937.7,2936.2,3.40910112]
[1766514193642,3.405,2937.5,2936.2,3.40910112]
[1766514194034,0.17024,2938.4,2936.8,1.82633947]
[1766514194233,4.335,2938.3,2936.9,3.405]
[1766514194434,0.00510742,2937.9,2937.3,0.00510742]
[1766514194634,3.41010742,2937.9,2937.3,0.00510742]
[1766514197842,3.405,2938.2,2937.3,1.83144689]
[1766514198036,3.405,2938.6,2937.4,4.576]
[1766514198233,0.00275996,2938.8,2937.6,1.82633947]
[1766514198637,0.00275996,2938.8,2937.5,3.405]
[1766514198838,0.00510742,2938.4,2937.8,1.82633947]
[1766514199043,0.00275996,2938.8,2937.8,1.82633947]
[1766514199044,0.00275996,2938.8,2937.9,3.405]
[1766514199233,0.00275996,2938.8,2937.3,0.00510742]
[1766514199434,0.00275996,2938.8,2937.4,9.444]
[1766514199942,0.00510742,2938.4,2937.4,9.444]
[1766514200543,0.00275996,2938.8,2937.8,1.82633947]
[1766514200738,0.00275996,2938.8,2937.9,3.405]
[1766514201645,0.00510742,2938.6,2937.9,3.405]
[1766514201942,0.00510742,2938.6,2938.0,3.405]
[1766514203748,0.00510742,2938.6,2937.5,1.82633947]
[1766514204143,0.00510742,2938.6,2937.6,13.763]
[1766514204341,0.00510742,2938.6,2937.7,9.442]
[1766514204842,0.00510742,2938.6,2937.8,9.442]
[1766514205341,0.00510742,2938.6,2937.5,1.82633947]
[1766514205544,0.00510742,2938.6,2937.8,6.038]
[1766514205739,0.00510742,2938.6,2937.9,3.405]
[1766514207345,0.00510742,2938.6,2937.6,2.165]
[1766514207649,3.57521,2938.9,2937.9,1.82633947]
[1766514207650,0.17021,2938.9,2937.9,1.82633947]
[1766514207842,3.405,2939.3,2938.2,1.82633947]
[1766514208048,3.405,2939.4,2938.5,1.82633947]
[1766514208339,3.405,2939.4,2938.6,3.405]
[1766514208745,0.00510742,2939.3,2938.6,3.40763215]
[1766514209047,0.17022,2938.8,2937.7,3.404]
[1766514209251,3.404,2938.7,2937.7,3.404]
[1766514209451,3.57422,2938.7,2937.7,3.404]
[1766514209850,3.57422,2938.7,2937.7,3.40696261]
[1766514211047,3.404,2938.7,2937.7,3.40696261]
[1766514211248,3.404,2938.7,2937.7,0.00296261]
[1766514211444,0.17025,2938.4,2937.4,3.404]
[1766514211642,3.404,2938.3,2937.4,3.404]
[1766514212349,0.17027,2937.9,2936.9,3.404]
[1766514212552,3.404,2937.8,2936.9,3.404]
[1766514213146,0.17024,2938.4,2936.9,3.404]
[1766514213456,0.00510742,2937.9,2937.4,0.00510742]
[1766514214664,3.404,2938.3,2937.4,0.00510742]
[1766514214860,0.17024,2938.4,2937.4,0.00510742]
[1766514215062,3.404,2938.7,2937.4,0.00510742]
[1766514215262,3.404,2938.8,2937.4,0.00510742]
[1766514215454,3.404,2938.8,2937.6,2.06868326]
[1766514215661,3.404,2938.8,2937.7,3.404]
[1766514215860,3.404,2938.8,2937.8,6.037]
[1766514216765,0.00338391,2938.6,2937.8,6.037]
[1766514217667,3.404,2938.8,2937.8,6.037]
[1766514223767,3.404,2938.8,2937.9,6.035]
[1766514223966,3.404,2938.8,2938.0,3.404]
[1766514225273,3.404,2938.8,2937.4,0.00510742]
[1766514225469,3.404,2938.8,2937.5,5.87]
[1766514227876,3.57422,2938.8,2937.5,5.87]
[1766514228078,0.17022,2938.7,2937.5,5.87]
[1766514228479,3.5442,2938.8,2937.4,0.00510742]
[1766514228682,0.17024,2938.5,2937.4,0.00510742]
[1766514228866,9.813,2938.4,2937.4,0.00510742]
[1766514229877,0.17024,2938.5,2937.4,0.00510742]
[1766514230078,3.404,2938.4,2937.4,0.00510742]
[1766514236486,3.57424,2938.4,2937.4,0.00510742]
[1766514237887,3.57424,2938.4,2937.4,2.02810742]
[1766514238685,0.17025,2938.2,2937.4,2.02810742]
[1766514238882,0.17025,2938.2,2937.4,0.00510742]
[1766514238883,3.404,2938.1,2937.4,0.00510742]
[1766514239481,2.352,2938.6,2937.4,0.00510742]
[1766514239684,3.404,2938.7,2937.4,0.00510742]
[1766514243288,3.404,2938.7,2937.5,12.847]
[1766514243595,3.404,2938.7,2937.6,9.438]
[1766514244296,3.404,2938.7,2937.7,6.034]
[1766514244494,3.404,2938.7,2937.7,7.0494]
[1766514244693,0.17024,2938.4,2937.5,3.404]
[1766514244887,3.404,2938.3,2937.5,3.404]
[1766514245393,3.404,2938.3,2936.9,0.0036398]
[1766514245589,3.404,2938.3,2937.2,3.404]
[1766514246501,0.00510741,2938.0,2937.5,0.00510742]
[1766514249393,3.40910741,2938.0,2937.2,3.404]
[1766514250397,3.40910741,2938.0,2937.3,0.00510742]
[1766514250895,3.40910741,2938.0,2936.9,0.0036398]
[1766514251094,3.40910741,2938.0,2937.0,3.404]
[1766514251895,3.40910741,2938.0,2937.2,0.00510742]
[1766514252194,3.40910741,2938.0,2937.0,3.404]
[1766514253100,3.40910741,2938.0,2937.2,0.00510742]
[1766514256999,3.40910741,2938.0,2936.9,0.0036398]
[1766514257298,3.40910741,2938.0,2937.0,3.405]
[1766514257491,3.40910741,2938.0,2936.9,0.0036398]
[1766514257492,0.17027,2937.9,2936.9,3.405]
[1766514257696,0.17028,2937.8,2936.8,3.405]
[1766514257894,3.405,2937.7,2937.0,0.00510742]
[1766514258090,3.405,2937.7,2936.8,3.405]
[1766514258493,3.405,2937.7,2936.8,3.40882671]
[1766514259201,3.405,2937.7,2937.0,0.00340498]
[1766514259599,0.17029,2937.6,2935.7,2.06868326]
[1766514259795,0.17029,2937.6,2935.8,16.143]
[1766514260704,0.17029,2937.6,2935.8,18.17016403]
[1766514260893,0.17029,2937.5,2935.9,17.953]
[1766514261099,0.17031,2937.3,2936.0,17.954]
[1766514261297,3.57785302,2937.3,2936.0,17.954]
[1766514262207,0.00254302,2937.3,2936.1,2.06868326]
[1766514262504,4.302e-05,2937.3,2936.1,2.06868326]
[1766514263003,4.302e-05,2937.3,2936.5,2.06868326]
[1766514263204,4.302e-05,2937.3,2936.6,9.442]
[1766514263901,3.405,2937.7,2936.6,9.442]
[1766514264707,3.405,2937.7,2936.2,2.023]
[1766514264893,3.4074749,2937.7,2936.3,14.979]
[1766514265091,3.4074749,2937.7,2936.2,2.023]
[1766514265292,3.4074749,2937.7,2936.4,6.037]
[1766514266300,0.17029,2937.6,2936.3,0.187]
[1766514266605,0.17029,2937.6,2936.5,9.442]
[1766514267208,0.17029,2937.6,2936.6,2.023]
[1766514268508,0.17029,2937.6,2936.7,3.405]
[1766514273001,3.4074749,2937.7,2936.7,3.405]
[1766514273208,0.0024749,2937.7,2936.7,3.405]
[1766514274016,0.0024749,2937.7,2937.2,1.18350547]
[1766514275719,0.0024749,2937.7,2937.1,3.405]
[1766514276306,0.00510741,2938.0,2937.1,3.405]
[1766514276307,0.00510741,2938.0,2937.2,1.18350547]
[1766514276516,3.405,2937.9,2937.2,1.18350547]
[1766514277013,3.405,2937.9,2937.1,3.52179999]
[1766514277220,7.41e-06,2938.0,2937.7,1.18350547]
[1766514277408,3.405,2938.5,2937.9,1.18350547]
[1766514277725,0.17023,2938.7,2937.9,4.58850547]
[1766514278013,0.17023,2938.7,2938.1,1.18350547]
[1766514278515,0.17938282,2938.7,2938.1,0.00901437]
[1766514283613,0.17938282,2938.7,2938.2,3.405]
[1766514284020,0.17938282,2938.7,2937.0,2.023]
[1766514284021,1.18350547,2938.6,2937.0,2.023]
[1766514284319,1.18350547,2938.6,2937.4,1.18350547]
[1766514284508,1.18350547,2938.4,2937.4,4.776]
[1766514284712,1.18350547,2938.4,2937.5,3.405]
[1766514284913,1.18350547,2938.4,2937.5,4.58850547]
[1766514285117,1.18350547,2938.4,2937.5,0.00415148]
[1766514285307,1.18350547,2938.2,2937.4,3.404]
[1766514285510,4.58750547,2938.2,2937.3,3.404]
[1766514285818,1.18350547,2938.0,2936.9,1.18350547]
[1766514286019,1.18350547,2938.0,2936.9,2.70250547]
[1766514286219,1.18350547,2938.0,2937.0,3.404]
[1766514286518,4.58750547,2938.2,2937.1,1.18350547]
[1766514287120,1.18350547,2938.0,2937.0,0.00332267]
[1766514287418,4.58750547,2937.9,2937.0,3.40732267]
[1766514287714,3.404,2937.8,2937.0,3.40732267]
[1766514288019,0.00915282,2938.7,2937.7,2.36701094]
[1766514288220,0.00915282,2938.7,2938.2,1.18350547]
[1766514288522,0.00915282,2938.7,2938.2,3.405]
[1766514289212,0.00915282,2938.7,2937.9,1.18350547]
[1766514289913,0.00915282,2938.7,2937.8,3.405]
[1766514291017,0.00915282,2938.7,2937.3,1.82518394]
[1766514291215,3.404,2938.6,2937.4,4.598]
[1766514291519,3.404,2938.6,2937.5,3.404]
[1766514294324,3.404,2938.6,2937.0,0.00332267]
[1766514294523,3.404,2938.6,2937.3,5.419]
[1766514294728,3.404,2938.6,2937.4,3.404]
[1766514300521,0.17937282,2938.7,2937.4,3.404]
[1766514300727,0.00915282,2938.7,2937.7,1.82518394]
[1766514300926,3.404,2939.1,2937.8,3.404]
[1766514301916,0.00241962,2939.1,2938.2,0.00510742]
[1766514302121,0.00241962,2939.1,2938.3,6.248]
[1766514302821,0.00241962,2939.1,2938.2,0.19330741]
[1766514303024,3.404,2939.4,2938.4,1.82518394]
[1766514303531,3.404,2939.4,2938.3,3.404]
[1766514303830,3.404,2939.7,2938.4,6.033]
[1766514304032,0.00510742,2939.3,2938.4,9.437]
[1766514304424,0.00510742,2939.3,2938.4,6.033]
[1766514304630,0.00510742,2939.3,2938.5,3.404]
[1766514305528,0.00510742,2939.3,2938.4,0.1406]
[1766514305831,0.17021,2938.9,2938.0,3.404]
[1766514306029,3.57422,2938.8,2937.0,0.00332267]
[1766514306234,5.22918394,2938.8,2937.1,17.046]
[1766514306429,0.17024,2938.5,2937.0,0.00332267]
[1766514306732,3.404,2938.4,2937.5,0.00510742]
[1766514306925,3.57424,2938.4,2937.5,0.00510742]
[1766514307632,0.17025,2938.3,2937.5,0.00510742]
[1766514307840,0.17025,2938.2,2937.0,0.00332267]
[1766514308141,3.404,2938.1,2937.2,3.404]
[1766514308846,3.404,2938.1,2937.4,0.00510742]
[1766514309944,0.17026,2938.0,2937.0,0.15332267]
[1766514310239,1.82518394,2937.6,2936.3,3.404]
[1766514310447,3.404,2937.5,2936.3,3.404]
[1766514310648,44.204,2937.5,2936.3,3.404]
[1766514311037,0.00510742,2937.2,2936.3,3.404]
[1766514311345,0.00760548,2937.2,2936.3,3.40718451]
[1766514312947,3.404,2938.5,2936.9,1.82518394]
[1766514313143,3.404,2938.5,2937.0,9.437]
[1766514313933,0.00510742,2938.0,2937.5,0.00510742]
[1766514314135,0.00510742,2938.0,2937.6,3.404]
[1766514314840,0.00510742,2938.0,2937.5,0.00510742]
[1766514315039,0.00510742,2938.0,2937.6,3.404]
[1766514316741,0.00510742,2938.0,2937.5,0.00510742]
[1766514317143,0.00510742,2938.0,2937.5,3.404]
[1766514317645,0.15294516,2938.5,2937.3,5.76]
[1766514317851,0.00304516,2938.5,2937.4,3.404]
[1766514318149,0.00304516,2938.5,2937.5,3.404]
[1766514318545,0.00510742,2938.3,2937.7,0.00510742]
[1766514318853,3.404,2938.2,2937.7,0.00510742]
[1766514319044,3.404,2938.2,2937.2,3.404]
[1766514319239,3.404,2938.2,2937.3,3.404]
[1766514320246,3.57426,2938.2,2937.3,3.404]
[1766514320447,3.57426,2938.2,2936.3,1.82836845]
[1766514320650,3.57426,2938.2,2936.4,13.107]
[1766514323351,0.17026,2938.1,2936.4,13.107]
[1766514324162,0.17026,2938.1,2936.6,1.82518394]
[1766514324350,0.17026,2938.1,2936.7,3.405]
[1766514328859,0.17026,2938.0,2936.3,1.82836845]
[1766514329158,0.17031,2937.3,2936.4,3.405]
[1766514329360,3.405,2937.2,2936.4,3.405]
[1766514331758,3.405,2937.2,2936.3,0.00318451]
[1766514331759,3.405,2937.2,2936.5,3.405]
[1766514332262,3.57531,2937.2,2935.5,1.82518394]
[1766514332557,3.57531,2937.2,2935.6,13.005]
[1766514332558,0.00510742,2936.6,2935.6,13.005]
[1766514333364,7.42e-06,2936.6,2935.6,13.00815621]
[1766514334360,7.42e-06,2936.6,2935.8,0.00510001]
[1766514334665,7.42e-06,2936.6,2935.9,3.405]
[1766514338058,5.808,2937.4,2935.9,3.405]
[1766514338252,2.5597,2937.4,2936.0,2.07131892]
[1766514338559,3.405,2937.7,2936.1,5.977]
[1766514338762,3.405,2937.7,2936.2,3.405]
[1766514339263,0.00510742,2937.2,2936.2,3.405]
[1766514339463,7.42e-06,2937.2,2936.2,3.405]
[1766514341979,0.17027,2937.9,2936.4,2.07131892]
[1766514342269,0.17027,2937.9,2936.5,17.955]
[1766514342863,0.00510742,2937.5,2936.5,17.955]
[1766514343062,0.00510742,2937.5,2936.4,0.2144]
[1766514343263,3.41010742,2937.5,2936.5,4.033]
[1766514343458,3.41010742,2937.5,2936.6,3.405]
[1766514343765,3.58039742,2937.5,2936.6,3.405]
[1766514347871,3.41010742,2937.5,2936.6,3.405]
[1766514353574,0.17027,2937.9,2936.6,3.405]
[1766514353781,3.57527,2937.9,2936.6,3.405]
[1766514354171,0.17027,2937.9,2936.6,3.405]
[1766514354477,0.00510742,2937.5,2936.8,2.07131892]
[1766514354668,3.405,2938.3,2936.8,2.07131892]
[1766514354865,3.405,2938.3,2936.9,11.919]
[1766514355074,3.405,2938.3,2937.0,4.949]
[1766514355579,0.00510742,2937.9,2937.4,0.00510742]
[1766514355876,0.00510742,2937.9,2937.4,3.41010742]
[1766514358876,3.40804516,2938.5,2937.5,0.1439]
[1766514359074,3.40804516,2938.5,2937.5,3.405]
[1766514359778,0.00510742,2938.3,2937.5,3.405]
[1766514361276,0.17026,2938.0,2936.3,2.07131892]
[1766514361482,3.405,2937.9,2936.4,13.174]
[1766514362478,3.57527,2937.9,2936.9,0.00510742]
[1766514362778,0.17028,2937.8,2936.9,3.41010742]
[1766514375880,3.405,2937.9,2936.9,0.00510742]
[1766514376082,0.17028,2937.8,2936.9,0.00510742]
[1766514376486,3.405,2937.9,2936.6,3.405]
[1766514376690,3.5446,2937.9,2936.4,3.5446]
[1766514377092,40.8,2937.8,2936.4,3.405]
[1766514377294,40.8,2937.8,2935.6,11.72568495]
[1766514377590,0.1703,2937.4,2936.4,0.00510742]
[1766514377782,3.405,2937.3,2936.4,3.41010742]
[1766514378292,3.405,2937.3,2936.4,0.00510742]
[1766514381692,0.17026,2938.1,2936.5,3.405]
[1766514381900,0.17026,2938.1,2936.8,2.07131892]
[1766514382086,0.17026,2938.1,2936.9,3.405]
[1766514382482,3.405,2938.0,2936.4,2.21582634]
[1766514382683,3.405,2938.0,2936.5,13.335]
[1766514382891,3.405,2938.0,2936.4,2.07642634]
[1766514383097,3.405,2938.0,2936.5,17.956]
[1766514383698,3.405,2938.0,2936.6,6.038]
[1766514383889,3.405,2938.0,2936.4,2.07642634]
[1766514384091,3.405,2938.0,2936.5,17.958]
[1766514389295,3.405,2938.0,2936.6,17.969]
[1766514391198,3.405,2938.0,2936.5,0.1394]
[1766514391398,3.405,2938.0,2936.6,4.82]
[1766514391596,0.17031,2937.3,2936.4,0.00510742]
[1766514392102,3.987,2937.2,2936.4,0.00510742]
[1766514393894,3.987,2937.2,2935.6,0.00315621]
[1766514394092,0.0711,2937.3,2935.7,3.405]
[1766514394299,6.374,2937.1,2935.7,3.405]
[1766514394702,6.54432,2937.1,2935.7,3.405]
[1766514394903,0.17032,2937.1,2935.7,3.405]
[1766514395103,4.386e-05,2940.4,2937.0,2.07131892]
[1766514395407,0.17016,2939.8,2938.0,2.07131892]
[1766514395604,3.405,2939.7,2938.1,14.176]
[1766514395905,2.07131892,2940.8,2938.1,14.176]
[1766514395906,3.405,2940.9,2939.1,1.82304491]
[1766514396096,0.00510742,2940.3,2939.7,0.00510742]
[1766514396298,3.41010742,2940.3,2939.7,0.00510742]
[1766514397995,0.17003,2942.0,2940.0,3.64608982]
[1766514398300,3.405,2942.2,2940.6,1.82304491]
[1766514398611,3.405,2942.1,2940.7,7.193]
[1766514398914,1.82304491,2942.8,2941.1,0.00510742]
[1766514399203,0.16998,2942.9,2941.2,3.405]
[1766514399395,4.613,2942.8,2941.2,4.576]
[1766514400006,0.00509857,2942.3,2941.2,4.576]
[1766514400208,3.404,2942.2,2941.2,4.57906498]
[1766514400606,0.0081371,2942.3,2941.2,4.57906498]
[1766514400904,0.0418,2943.6,2941.9,1.82304491]
[1766514401109,0.0418,2943.6,2941.2,12.40210989]
[1766514401110,3.404,2943.5,2942.0,17.967]
[1766514401304,3.404,2943.4,2942.1,3.404]
[1766514401514,3.404,2943.4,2942.2,3.404]
[1766514401711,0.00338431,2943.1,2942.5,0.00509857]
[1766514401909,3.403,2943.0,2942.5,0.00509857]
[1766514402311,0.00338431,2943.1,2942.5,0.00509857]
[1766514402505,0.00390305,2943.4,2942.5,3.40809857]
[1766514404414,0.00390305,2943.4,2942.5,0.00509857]
[1766514405013,0.16997,2943.2,2942.1,3.402]
[1766514405218,7.50897,2943.1,2941.8,3.402]
[1766514405418,0.16999,2942.8,2941.7,0.0418]
[1766514405609,3.402,2942.7,2941.5,5.22504491]
[1766514406114,0.00509857,2942.4,2941.8,0.00509857]
[1766514406516,3.402,2942.5,2941.8,0.00509857]
[1766514410512,0.22199,2942.8,2941.8,0.00509857]
[1766514410513,0.16999,2942.8,2941.9,3.401]
[1766514410717,1.83007508,2945.4,2942.0,6.046]
[1766514411020,0.91185358,2944.9,2942.5,1.82304491]
[1766514411221,3.401,2943.6,2942.6,3.401]
[1766514412422,3.401,2943.3,2941.9,1.82304491]
[1766514412721,3.401,2943.3,2942.0,3.401]
[1766514413115,0.16996,2943.2,2941.8,0.00509857]
[1766514413318,0.16997,2943.1,2941.9,3.401]
[1766514413516,3.4,2943.0,2941.9,3.401]
[1766514414816,3.4,2943.0,2942.0,1.82304491]
[1766514414817,3.56998,2943.0,2942.0,1.82304491]
[1766514415510,0.00390305,2943.4,2942.4,1.82304491]
[1766514415714,0.00390305,2943.4,2942.5,3.4]
[1766514416623,3.4,2943.3,2942.5,3.4]
[1766514417226,3.05e-06,2943.4,2942.5,3.4]
[1766514418116,3.05e-06,2943.4,2942.8,1.82304491]
[1766514418322,3.4,2943.9,2942.9,9.444]
[1766514419319,0.00265523,2943.9,2942.9,9.444]
[1766514419826,5.39297491,2943.8,2941.4,0.17007]
[1766514420025,0.16994,2943.6,2941.9,5.22304491]
[1766514420325,0.16996,2943.2,2941.9,5.22304491]
[1766514420523,3.56996,2943.2,2941.9,5.22304491]
[1766514420729,3.5727083,2943.2,2941.9,5.22304491]
[1766514421427,3.5727083,2943.2,2941.9,3.4]
[1766514423025,0.16998,2943.0,2941.8,3.40409857]
[1766514423225,3.56898,2942.9,2941.8,3.40409857]
[1766514424041,0.92087588,2942.8,2941.8,3.40409857]
[1766514424334,1.09086588,2942.7,2941.4,3.399]
[1766514424534,0.17001,2942.5,2941.2,0.00306498]
[1766514424733,7.27687588,2942.4,2941.2,0.00306498]
[1766514425031,4.31987588,2942.3,2941.2,0.00306498]
[1766514425219,0.00509857,2942.0,2940.5,1.82304491]
[1766514425425,0.92087588,2941.9,2940.8,3.799]
[1766514425621,0.92087588,2941.8,2940.5,6.042]
[1766514425823,4.31987588,2941.7,2940.8,3.399]
[1766514426021,0.57427588,2941.6,2936.6,4.62540727]
[1766514426227,3.399,2941.7,2940.4,0.04769857]
[1766514426433,3.399,2941.7,2940.5,3.399]
[1766514427227,5.22204491,2941.7,2940.4,0.00509857]
[1766514427431,9.71159294,2941.6,2940.4,0.00509857]
[1766514427626,1.21159294,2941.5,2940.4,0.00509857]
[1766514427829,3.4,2941.4,2940.4,0.00509857]
[1766514429036,40.8,2941.3,2940.4,0.00509857]
[1766514429338,3.4,2941.4,2940.4,0.00509857]
[1766514429737,45.41159294,2941.4,2940.4,0.00509857]
[1766514430331,44.2,2941.4,2940.4,0.00509857]
[1766514431031,42.62304491,2941.4,2939.7,5.26255326]
[1766514431335,42.62304491,2941.4,2939.8,3.4]
[1766514431528,9.765,2941.3,2939.8,3.4]
[1766514431926,9.93508,2941.3,2939.8,3.4]
[1766514432233,1.82304491,2941.1,2939.8,3.4]
[1766514432433,3.4,2941.0,2939.8,3.4]
[1766514433031,0.1701,2940.9,2939.8,3.4]
[1766514433236,6.368,2940.8,2939.8,3.4]
[1766514433437,3.4,2940.7,2939.8,3.4]
[1766514434137,3.4,2940.7,2940.0,0.00509857]
[1766514435236,3.4,2940.7,2939.7,0.00355326]
[1766514436144,0.00509857,2940.5,2939.9,0.00339906]
[1766514436348,3.401,2940.4,2939.9,0.00339906]
[1766514439140,3.401,2940.4,2939.7,0.00355326]
[1766514441236,0.00509857,2940.5,2939.7,0.00355326]
[1766514441444,0.00509857,2940.5,2939.8,3.401]
[1766514442241,3.40609857,2940.5,2939.8,3.401]
[1766514446153,3.40609857,2940.5,2939.5,3.401]
[1766514447062,3.40609857,2940.5,2939.5,3.40406063]
[1766514449260,3.40609857,2940.5,2939.5,0.00306063]
[1766514449460,0.17013,2940.3,2939.2,3.402]
[1766514449768,3.402,2940.2,2939.2,3.402]
[1766514450067,5.711,2940.1,2939.2,3.402]
[1766514450363,5.711,2940.1,2939.2,3.4044223]
[1766514452367,3.402,2940.1,2939.2,3.4044223]
[1766514457656,6.365,2940.3,2939.2,3.4044223]
[1766514457861,3.402,2940.2,2939.2,0.0024223]
[1766514458168,3.402,2940.2,2939.3,3.402]
[1766514458555,2.98040895,2940.1,2937.9,0.17027]
[1766514458763,0.00509857,2939.3,2938.0,3.402]
[1766514459065,3.40709857,2939.3,2938.0,3.402]
[1766514459466,3.40709857,2939.3,2938.0,3.40500222]
[1766514460070,0.17021,2938.9,2938.0,0.00300222]
[1766514460267,8.028,2938.8,2938.0,0.00300222]
[1766514467573,8.19822,2938.8,2938.0,0.00300222]
[1766514467774,0.17023,2938.6,2936.6,3.403]
[1766514467978,0.00509857,2937.9,2936.7,3.403]
[1766514468277,0.00509857,2937.9,2936.8,3.403]
[1766514468472,0.00509857,2937.9,2936.9,3.403]
[1766514468674,0.00509857,2937.9,2937.0,3.403]
[1766514470081,3.27801694,2939.7,2937.0,3.403]
[1766514470082,0.17018,2939.4,2937.4,2.066424]
[1766514470378,3.4062389,2938.9,2937.5,3.403]
[1766514470573,3.4062389,2938.9,2937.0,2.248144]
[1766514470781,3.4062389,2938.9,2937.1,17.961]
[1766514471179,0.00509857,2938.3,2937.7,0.00509857]
[1766514471477,3.40909857,2938.3,2937.7,0.00509857]
[1766514472882,3.40909857,2938.3,2937.5,3.404]
[1766514481487,0.0032389,2938.9,2937.5,3.404]
[1766514481793,0.0032389,2938.9,2937.8,2.066424]
[1766514481994,0.0032389,2938.9,2937.9,17.962]
[1766514482593,0.0032389,2938.9,2938.1,0.00509857]
[1766514482793,0.0032389,2938.9,2938.2,3.404]
[1766514483688,0.00509857,2938.8,2938.2,3.404]
[1766514484796,0.0032389,2938.9,2938.2,3.404]
[1766514485888,0.00509857,2938.8,2938.2,3.404]
[1766514486788,40.8,2939.6,2938.2,3.404]
[1766514486989,3.404,2939.5,2938.2,3.404]
[1766514487890,0.00509857,2939.1,2938.2,3.404]
[1766514500106,0.00509857,2939.1,2938.1,0.00509857]
[1766514500303,0.00509857,2939.1,2938.2,3.404]
[1766514506910,3.57414,2940.3,2938.2,5.470424]
[1766514507709,0.00509857,2939.5,2938.2,5.470424]